fUSD/lending_fUSD_20240601
["ID","MTS","AMOUNT","RATE_DAILY","PERIOD"]
[328372913,1717272638265,-500.0,0.000323,2]
[328372914,1717272638274,-500.0,0.000323,2]
[328372915,1717272638283,-500.0,0.000323,2]
[328372916,1717272638295,-500.0,0.000323,2]
[328372917,1717272638305,-500.0,0.000323,2]
[328372918,1717272638315,-500.0,0.000323,2]
[328372919,1717272638325,-500.0,0.000323,2]
[328372920,1717272638334,-500.0,0.000323,2]
[328372921,1717272638344,-500.0,0.000323,2]
[328372922,1717272638354,-500.0,0.000323,2]
[328372923,1717272638363,-500.0,0.000323,2]
[328372924,1717272638373,-500.0,0.000323,2]
[328372925,1717272638381,-500.0,0.000323,2]
[328372926,1717272638390,-500.0,0.000323,2]
[328372927,1717272638399,-500.0,0.000323,2]
[328372928,1717272638409,-500.0,0.000323,2]
[328372929,1717272638418,-500.0,0.000323,2]
[328372930,1717272638429,-500.0,0.000323,2]
[328372931,1717272638438,-500.0,0.000323,2]
[328372932,1717272638447,-314.23597978,0.00032308,2]
[328372933,1717272638456,-3003.53079058,0.00032373,2]
[328372934,1717272638465,-150.0,0.00032444,2]
[328372935,1717272638475,-164.3233478,0.00032449,7]
[328372936,1717272638483,-4079.43402115,0.00032453,10]
[328372937,1717272638493,-500.0,0.00032485,10]
[328372938,1717272638502,-150.79579508,0.00032493,30]
[328372939,1717272638511,-860.45538597,0.0003257,2]
[328372940,1717272638520,-389.33340285,0.00032622,7]
[328372941,1717272638530,-389.33340285,0.00032627,7]
[328372942,1717272638540,-493.78,0.0003264,2]
[328372943,1717272638549,-150.0,0.00032663,2]
[328372944,1717272638558,-389.33340285,0.00032699,7]
[328372945,1717272638567,-389.33340285,0.00032701,7]
[328372946,1717272638577,-150.79579508,0.00032712,30]
[328372947,1717272638586,-153.94527055,0.00032773,7]
[328372948,1717272638595,-18785.50313305,0.00032798,14]
[328372951,1717272638722,-500.0,0.00028155,2]
[328372952,1717272638731,-447.04048883,0.00028155,2]
[328372953,1717272638741,-188.49167688,0.00028155,2]
[328372954,1717272638754,-365.69678284,0.00028155,2]
[328372955,1717272638763,-85.19653941,0.00028155,2]
[328372956,1717272638774,-91.4751435,0.00028155,2]
[328372957,1717272638788,-180.84951698,0.00032798,14]
[328372958,1717272638799,-324.95664198,0.00032798,14]
[328372959,1717272638810,-251.16883427,0.00032798,14]
[328372960,1717272638823,-2330.71214622,0.00032798,14]
[328372961,1717272638835,-497.40953863,0.00032798,14]
[328372962,1717272638846,-1002.15461924,0.00032798,14]
[328372963,1717272638858,-9214.26504448,0.00032798,14]
[328372964,1717272638869,-29212.98052615,0.00032798,14]
[328372965,1717272638880,-500.49270451,0.000328,4]
[328372966,1717272638889,-500.49270447,0.00032836,4]
[328372967,1717272638899,-500.49270447,0.00032873,4]
[328372968,1717272638908,-150.0,0.00032875,2]
[328372969,1717272638918,-500.0,0.00032876,11]
[328372970,1717272638927,-500.0,0.00032876,11]
[328372971,1717272638936,-500.0,0.00032876,11]
[328372972,1717272638946,-500.0,0.00032876,11]
[328372973,1717272638955,-500.0,0.00032876,11]
[328372974,1717272638964,-207.43906551,0.00032876,11]
[328372975,1717272638973,-304.13103888,0.00032876,11]
[328372976,1717272638982,-256.73673152,0.00032876,11]
[328372977,1717272638991,-500.0,0.00032876,11]
[328372978,1717272639000,-503.18708993,0.00032876,11]
[328372979,1717272639009,-523.92876802,0.00032876,11]
[328372980,1717272639019,-500.0,0.00032876,2]
[328372981,1717272639028,-500.0,0.00032876,2]
[328372982,1717272639037,-497.49894089,0.00032876,2]
[328372983,1717272639047,-500.0,0.00032876,2]
[328372984,1717272639056,-500.0,0.00032876,2]
[328372985,1717272639065,-261.34893819,0.00032876,2]
[328372986,1717272639077,-238.65106181,0.00032876,2]
[328372987,1717272639085,-500.0,0.00032876,2]
[328372988,1717272639094,-500.0,0.00032876,2]
[328372989,1717272639104,-500.0,0.00032876,2]
[328372990,1717272639113,-360.1909927,0.00032876,2]
[328372991,1717272639122,-287.71789549,0.00032876,11]
[328372992,1717272639133,-212.28210451,0.00032876,11]
[328372993,1717272639142,-522.33720857,0.00032876,11]
[328372994,1717272639153,-13.52232497,0.00032876,11]
[328372995,1717272639162,-500.0,0.00032876,11]
[328372996,1717272639171,-500.0,0.00032876,11]
[328372997,1717272639181,-307.24382551,0.00032876,11]
[328372998,1717272639190,-557.05388484,0.00032876,11]
[328372999,1717272639199,-500.0,0.00032876,11]
[328373000,1717272639208,-155.0,0.00032876,11]
[328373001,1717272639217,-544.40161227,0.00032876,11]
[328373002,1717272639226,-500.0,0.00032876,11]
[328373003,1717272639236,-500.0,0.00032876,11]
[328373004,1717272639245,-584.1027331,0.00032876,11]
[328373005,1717272639254,-502.65540958,0.00032876,11]
[328373006,1717272639264,-500.0,0.00032876,11]
[328373007,1717272639273,-535.62153452,0.00032876,11]
[328373008,1717272639282,-500.0,0.00032876,11]
[328373009,1717272639293,-500.0,0.00032876,11]
[328373010,1717272639302,-500.0,0.00032876,11]
[328373011,1717272639311,-469.63661556,0.00032876,11]
[328373012,1717272639321,-500.0,0.00032876,11]
[328373013,1717272639330,-507.81899733,0.00032876,11]
[328373014,1717272639340,-334.70375465,0.00032876,11]
[328373015,1717272639349,-526.8927267,0.00032876,11]
[328373016,1717272639358,-560.40350812,0.00032876,11]
[328373017,1717272639368,-500.0,0.00032876,11]
[328373018,1717272639377,-407.93872576,0.00032876,11]
[328373019,1717272639387,-288.90858436,0.00032876,11]
[328373020,1717272639396,-1000.0,0.00032876,5]
[328373021,1717272639406,-644.39241986,0.00032876,5]
[328373022,1717272639415,-512.03973792,0.00032876,11]
[328373023,1717272639425,-500.0,0.00032876,11]
[328373024,1717272639435,-559.71651957,0.00032876,11]
[328373025,1717272639445,-285.13117907,0.00032876,11]
[328373026,1717272639455,-550.96854895,0.00032876,11]
[328373027,1717272639465,-500.83356571,0.00032876,11]
[328373028,1717272639474,-597.26961701,0.00032876,11]
[328373029,1717272639483,-251.19648407,0.00032876,11]
[328373054,1717272640847,-248.80351593,0.00032876,11]
[328373056,1717272640858,-500.0,0.00032876,11]
[328373058,1717272640867,-500.0,0.00032876,11]
[328373060,1717272640877,-500.0,0.00032876,11]
[328373062,1717272640886,-644.6952051,0.00032876,11]
[328373064,1717272640896,-500.0,0.00032876,11]
[328373066,1717272640905,-249.07974098,0.00032876,11]
[328373068,1717272640914,-68.23404924,0.00032876,11]
[328373070,1717272640925,-431.76595076,0.00032876,11]
[328373072,1717272640936,-500.0,0.00032876,11]
[328373073,1717272640945,-500.0,0.00032876,11]
[328373075,1717272640955,-523.99426872,0.00032876,11]
[328373077,1717272640964,-500.0,0.00032876,2]
[328373079,1717272640974,-500.0,0.00032876,2]
[328373081,1717272640984,-500.0,0.00032876,2]
[328373083,1717272640993,-411.81624809,0.00032876,11]
[328373085,1717272641002,-526.31200238,0.00032876,11]
[328373087,1717272641012,-842.83,0.00032876,11]
[328373089,1717272641021,-842.83,0.00032876,11]
[328373091,1717272641030,-558.65153018,0.00032876,11]
[328373114,1717272641642,-760.01039041,0.0002604,2]
[328373115,1717272641654,-1058.18044309,0.0002604,2]
[328373116,1717272641665,-1289.02034341,0.0002604,2]
[328373117,1717272641675,-149.46436963,0.00032876,11]
[328373118,1717272641687,-134.71410019,0.00032876,11]
[328373119,1717272641696,-842.83,0.00032876,11]
[328373120,1717272641705,-842.83,0.00032876,11]
[328373121,1717272641714,-368.18278963,0.00032876,11]
[328373122,1717272641723,-510.18160488,0.00032876,11]
[328373123,1717272641732,-514.26363351,0.00032876,11]
[328373124,1717272641742,-525.5373219,0.00032876,11]
[328373125,1717272641751,-523.96913805,0.00032876,11]
[328373126,1717272641760,-500.0,0.00032876,11]
[328373127,1717272641769,-500.0,0.00032876,11]
[328373130,1717272641894,-500.0,0.00032876,11]
[328373131,1717272641906,-500.0,0.00032876,11]
[328373132,1717272641916,-500.0,0.00032876,11]
[328373133,1717272641925,-500.0,0.00032876,11]
[328373134,1717272641935,-493.64787806,0.00032876,11]
[328373135,1717272641944,-523.48842788,0.00032876,11]
[328373136,1717272641954,-500.0,0.00032876,11]
[328373137,1717272641965,-379.80632125,0.00032876,11]
[328373138,1717272641975,-500.0,0.00032876,11]
[328373139,1717272641984,-500.0,0.00032876,11]
[328373140,1717272641993,-562.75365395,0.00032876,11]
[328373141,1717272642002,-500.0,0.00032876,11]
[328373142,1717272642012,-265.36038767,0.00032876,11]
[328373143,1717272642022,-542.68599538,0.00032876,11]
[328373144,1717272642033,-500.0,0.00032876,11]
[328373145,1717272642042,-500.0,0.00032876,11]
[328373146,1717272642052,-500.0,0.00032876,11]
[328373147,1717272642063,-425.11176473,0.00032876,11]
[328373148,1717272642074,-574.07630337,0.00032876,11]
[328373149,1717272642083,-500.0,0.00032876,11]
[328373150,1717272642093,-527.27043267,0.00032876,11]
[328373151,1717272642103,-273.24063322,0.00032876,11]
[328373152,1717272642112,-500.0,0.00032876,11]
[328373153,1717272642122,-271.90902633,0.00032876,11]
[328373154,1717272642133,-500.0,0.00032876,11]
[328373155,1717272642142,-150.58124711,0.00032876,11]
[328373156,1717272642152,-624.23104033,0.00032876,11]
[328373157,1717272642161,-266.34306477,0.00032876,11]
[328373158,1717272642171,-500.0,0.00032876,11]
[328373159,1717272642181,-500.0,0.00032876,11]
[328373160,1717272642190,-500.0,0.00032876,11]
[328373161,1717272642199,-500.0,0.00032876,11]
[328373162,1717272642209,-466.98523512,0.00032876,11]
[328373163,1717272642223,-68.54598689,0.00032876,11]
[328373164,1717272642234,-500.0,0.00032876,11]
[328373165,1717272642243,-500.0,0.00032876,11]
[328373166,1717272642252,-139.26716953,0.00032876,2]
[328373208,1717272643155,-313.89098337,0.00032876,2]
[328373210,1717272643164,-199.36515274,0.00032876,11]
[328373212,1717272643174,-500.0,0.00032876,11]
[328373214,1717272643184,-500.0,0.00032876,11]
[328373216,1717272643193,-500.0,0.00032876,11]
[328373218,1717272643202,-500.0,0.00032876,11]
[328373220,1717272643211,-500.0,0.00032876,11]
[328373222,1717272643221,-538.21142,0.00032876,11]
[328373223,1717272643230,-464.09089214,0.00032876,11]
[328373224,1717272643239,-519.95434228,0.00032876,11]
[328373225,1717272643249,-500.0,0.00032876,11]
[328373226,1717272643258,-500.0,0.00032876,11]
[328373228,1717272643267,-291.30940919,0.00032876,11]
[328373230,1717272643276,-500.0,0.00032876,11]
[328373232,1717272643285,-446.99480679,0.00032876,11]
[328373233,1717272643295,-500.0,0.00032876,11]
[328373235,1717272643304,-500.0,0.00032876,11]
[328373238,1717272643313,-500.0,0.00032876,11]
[328373239,1717272643323,-500.0,0.00032876,11]
[328373241,1717272643332,-500.0,0.00032876,11]
[328373244,1717272643342,-500.0,0.00032876,11]
[328373245,1717272643351,-500.0,0.00032876,11]
[328373247,1717272643360,-500.0,0.00032876,11]
[328373249,1717272643369,-500.0,0.00032876,11]
[328373252,1717272643379,-500.0,0.00032876,11]
[328373254,1717272643388,-500.0,0.00032876,11]
[328373256,1717272643397,-500.0,0.00032876,11]
[328373257,1717272643407,-175.13051873,0.00032876,11]
[328373259,1717272643417,-573.0198713,0.00032876,11]
[328373261,1717272643426,-500.0,0.00032876,11]
[328373263,1717272643436,-500.0,0.00032876,11]
[328373265,1717272643445,-470.71,0.00032876,11]
[328373268,1717272643455,-500.0,0.00032876,11]
[328373269,1717272643464,-500.0,0.00032876,11]
[328373271,1717272643474,-500.0,0.00032876,11]
[328373273,1717272643483,-500.0,0.00032876,11]
[328373275,1717272643493,-500.0,0.00032876,11]
[328373277,1717272643502,-500.0,0.00032876,11]
[328373279,1717272643511,-500.0,0.00032876,11]
[328373281,1717272643521,-500.0,0.00032876,11]
[328373283,1717272643531,-188.38590625,0.00032876,11]
[328373285,1717272643540,-1632.33669721,0.00032886,5]
[328373288,1717272643556,-5571.99330279,0.00032886,5]
[328373290,1717272643565,-422.79629722,0.00032889,11]
[328373292,1717272643581,-99.97515683,0.00032889,11]
[328373294,1717272643590,-500.0,0.00032889,2]
[328373296,1717272643599,-500.0,0.00032889,11]
[328373298,1717272643608,-500.0,0.00032889,11]
[328373300,1717272643618,-1974.34699172,0.0003289,2]
[328373301,1717272643631,-811.91766112,0.0003289,2]
[328373310,1717272646188,-687.14,0.0003289,2]
[328373333,1717272646403,-856.71900805,0.0003289,2]
[328373335,1717272646414,-10498.99071,0.0003289,2]
[328373337,1717272646425,-7317.37231,0.0003289,2]
[328373368,1717272801227,163.04,0.00030929,120]
[328373369,1717273267134,247.6,0.00029899,30]
[328373378,1717273653220,-475.49211374,0.00017258,2]
[328373379,1717273813820,226.96,0.00029808,30]
[328373384,1717273832323,-450.0,0.00017072,2]
[328373385,1717273832335,-25.489414,0.00017072,2]
[328373386,1717273832345,-659.44911878,0.00017158,2]
[328373387,1717273832385,-692.47792563,0.00017158,2]
[328373388,1717273832394,-98.77029822,0.00017158,2]
[328373389,1717273832405,-1253.15674618,0.00017158,2]
[328373390,1717273832415,-5424.50788626,0.00017258,2]
[328373391,1717273832424,-386.98778495,0.00017258,2]
[328373392,1717273832437,-5235.825304,0.00017258,2]
[328373393,1717273832447,-6127.228,0.00017258,2]
[328373394,1717273832458,-4822.69,0.00017258,2]
[328373395,1717273832470,-14999.99999904,0.00017258,2]
[328373396,1717273832481,-5970.52989157,0.00017258,2]
[328373397,1717273832491,-26541.74878226,0.00017259,2]
[328373398,1717273832500,-1290.0,0.000175,2]
[328373399,1717273832510,-497.0,0.000175,2]
[328373400,1717273832519,-648.84323961,0.00018572,2]
[328373401,1717273832528,-500.0,0.00018573,2]
[328373402,1717273832537,-499.99,0.00018573,2]
[328373403,1717273832546,-218.01,0.00024384,2]
[328373404,1717273832556,-550.0,0.00025,2]
[328373405,1717273832565,-545.0,0.00026169,2]
[328373406,1717273832574,-1467.0,0.00026169,2]
[328373407,1717273832587,-4227.64,0.00026169,2]
[328373408,1717273832596,-18679.3176,0.00026375,2]
[328373409,1717273832606,-600.0,0.00027,2]
[328373410,1717273832615,-805.42124353,0.0002739,2]
[328373411,1717273832624,-31.98791675,0.00027553,2]
[328373412,1717273832637,-468.01208325,0.00027553,2]
[328373413,1717273832646,-500.0,0.00027553,2]
[328373415,1717273832656,-354.0,0.000277,2]
[328373416,1717273832665,-435.58,0.00027959,2]
[328373417,1717273832678,-500.0,0.00028649,2]
[328373418,1717273832688,-500.0,0.00028649,2]
[328373419,1717273832698,-650.0,0.00029,2]
[328373420,1717273832708,-977.41715961,0.00029,10]
[328373422,1717273832718,-545.0,0.00029169,2]
[328373424,1717273832728,-1032.76522432,0.00029301,2]
[328373426,1717273832737,-1086.21460845,0.00029301,2]
[328373428,1717273832747,-250.0,0.00029453,2]
[328373430,1717273832756,-200.0,0.00029532,2]
[328373432,1717273832766,-166.56,0.00029534,2]
[328373434,1717273832777,-228.67,0.00029595,2]
[328373436,1717273832787,-882.49,0.00029668,2]
[328373438,1717273832796,-2635.97,0.00029693,2]
[328373440,1717273832805,-150.0,0.000297,2]
[328373442,1717273832815,-250.0,0.00029745,2]
[328373444,1717273832825,-500.0,0.00029745,2]
[328373446,1717273832834,-500.0,0.00029745,2]
[328373447,1717273832843,-400.0,0.00029768,2]
[328373448,1717273832853,-847.37,0.00029802,2]
[328373449,1717273832863,-250.0,0.00029811,2]
[328373450,1717273832872,-2751.0,0.00029846,2]
[328373451,1717273832882,-1390.38,0.00029889,2]
[328373452,1717273832891,-446.30746682,0.00029899,2]
[328373453,1717273832901,-337.42728181,0.00029899,7]
[328373454,1717273832911,-1201.84707449,0.00029899,2]
[328373455,1717273832920,-331.88744036,0.00029968,2]
[328373456,1717273832929,-4617.99,0.0003004,2]
[328373457,1717273832939,-435.58,0.00030223,2]
[328373458,1717273832948,-164.43,0.00030256,2]
[328373459,1717273832958,-1065.46882965,0.0003031,2]
[328373460,1717273832967,-1087.13895027,0.0003031,2]
[328373461,1717273832976,-1000.0,0.000304,2]
[328373462,1717273832986,-224.0,0.000304,2]
[328373463,1717273832995,-150.0,0.00030493,2]
[328373464,1717273833005,-500.0,0.00030841,10]
[328373465,1717273833014,-500.0,0.00030841,10]
[328373466,1717273833024,-246.5778218,0.00030935,7]
[328373467,1717273833034,-700.0,0.00031,2]
[328373468,1717273833043,-150.0,0.00031,2]
[328373469,1717273833053,-246.5778218,0.00031087,7]
[328373470,1717273833064,-150.0,0.00031286,2]
[328373471,1717273833073,-157.0,0.0003133,21]
[328373472,1717273833083,-246.5778218,0.00031374,7]
[328373473,1717273833092,-1390.38,0.00031384,2]
[328373474,1717273833101,-246.5778218,0.00031513,7]
[328373475,1717273833111,-246.5778218,0.0003175,7]
[328373476,1717273833120,-246.5778218,0.00031757,7]
[328373477,1717273833130,-164.26,0.00031911,10]
[328373478,1717273833139,-3204.47304407,0.00031921,120]
[328373479,1717273833149,-500.0,0.00031937,10]
[328373480,1717273833159,-500.0,0.00031937,10]
[328373481,1717273833168,-246.5778218,0.00031979,7]
[328373482,1717273833178,-150.0,0.0003208,2]
[328373483,1717273833187,-246.5778218,0.0003209,7]
[328373484,1717273833198,-152.98502604,0.00032101,7]
[328373485,1717273833207,-2796.4900593,0.00032135,10]
[328373486,1717273833219,-152.0,0.00032155,3]
[328373487,1717273833230,-309.0,0.00032169,2]
[328373488,1717273833239,-1089.58218607,0.00032232,5]
[328373489,1717273833250,-1096.15167645,0.00032232,5]
[328373490,1717273833261,-1658.34164625,0.00032232,4]
[328373491,1717273833272,-246.5778218,0.00032235,7]
[328373492,1717273833281,-2796.49005921,0.00032253,10]
[328373493,1717273833291,-246.5778218,0.00032284,7]
[328373494,1717273833301,-153.94527055,0.00032288,7]
[328373495,1717273833312,-2796.49005921,0.00032372,10]
[328373496,1717273833323,-435.58,0.00032487,2]
[328373497,1717273833332,-2796.49005921,0.0003249,10]
[328373498,1717273833342,-246.5778218,0.0003253,7]
[328373499,1717273833352,-847.37,0.00032542,2]
[328373500,1717273833364,-151.35293118,0.00032547,2]
[328373501,1717273833375,-2796.49005921,0.00032608,10]
[328373502,1717273833386,-500.0,0.00032612,2]
[328373503,1717273833396,-484.57899808,0.00032612,2]
[328373504,1717273833406,-254.01799931,0.00032612,2]
[328373505,1717273833416,-407.94340216,0.00032613,10]
[328373506,1717273833428,-246.5778218,0.00032615,7]
[328373507,1717273833438,-246.5778218,0.00032623,7]
[328373508,1717273833447,-407.94340211,0.00032678,10]
[328373509,1717273833456,-2796.49005921,0.00032727,10]
[328373510,1717273833466,-407.94340211,0.00032743,10]
[328373511,1717273833476,-1000.0,0.0003277,2]
[328373512,1717273833486,-7500.0,0.00032776,2]
[328373513,1717273833494,-284.16443436,0.00032778,2]
[328373514,1717273833504,-1409.3567,0.0003279,2]
[328373515,1717273833513,-150.0,0.000328,6]
[328373516,1717273833522,-407.94340211,0.00032809,10]
[328373517,1717273833532,-171.72,0.00032836,2]
[328373518,1717273833541,-284.16443433,0.00032838,2]
[328373519,1717273833551,-2796.49005921,0.00032845,10]
[328373520,1717273833560,-1196.59,0.0003286,2]
[328373521,1717273833569,-51878.55723947,0.0003287,2]
[328373522,1717273833582,-10698.90772383,0.0003287,2]
[328373523,1717273833594,-13373.86,0.0003287,2]
[328373524,1717273833607,-24048.6750367,0.0003287,2]
[328373525,1717273833616,-150.0,0.00032873,2]
[328373526,1717273833626,-407.94340211,0.00032874,10]
[328373527,1717273833635,-4156.9992272,0.00032875,2]
[328373528,1717273833645,-500.0,0.00032876,2]
[328373529,1717273833655,-500.0,0.00032876,2]
[328373530,1717273833665,-500.0,0.00032876,2]
[328373531,1717273833677,-667.24,0.00032876,11]
[328373532,1717273833686,-667.24,0.00032876,11]
[328373533,1717273833696,-667.24,0.00032876,11]
[328373534,1717273833705,-667.24,0.00032876,11]
[328373535,1717273833715,-1458.4610974,0.00032877,2]
[328373536,1717273833724,-536.3183528,0.00032877,2]
[328373537,1717273833734,-20244.1904859,0.00032877,2]
[328373538,1717273833743,-4583.4393758,0.00032877,2]
[328373539,1717273833754,-1390.38,0.00032878,2]
[328373540,1717273833766,-179.0,0.00032886,5]
[328373541,1717273833778,-500.0,0.00032889,2]
[328373542,1717273833787,-5004.58564611,0.0003289,2]
[328373543,1717273833797,-1943.07644,0.0003289,2]
[328373544,1717273833807,-284.16443433,0.00032899,2]
[328373545,1717273833817,-489.0,0.000329,2]
[328373546,1717273833826,-179.0,0.000329,2]
[328373547,1717273833836,-510.0,0.000329,2]
[328373548,1717273833845,-2000.0,0.000329,2]
[328373549,1717273833854,-446.0,0.000329,2]
[328373550,1717273833864,-300.0,0.000329,3]
[328373551,1717273833874,-1055.0,0.000329,2]
[328373552,1717273833883,-712.82680063,0.000329,2]
[328373553,1717273833893,-3669.36372546,0.00032908,30]
[328373554,1717273833902,-155.61412597,0.00032919,7]
[328373555,1717273833912,-151.0,0.0003292,2]
[328373556,1717273833921,-150.79579508,0.00032932,30]
[328373557,1717273833932,-407.94340211,0.00032939,10]
[328373558,1717273833941,-284.16443433,0.00032959,2]
[328373559,1717273833951,-2796.49005921,0.00032963,10]
[328373560,1717273833961,-8546.2499769,0.00032966,2]
[328373561,1717273833986,-500.0,0.0003297,2]
[328373562,1717273833996,-1355.0,0.0003298,10]
[328373563,1717273834006,-499.0,0.0003298,10]
[328373564,1717273834016,-599.27979208,0.0003299,2]
[328373565,1717273834026,-214.60592809,0.00033,4]
[328373566,1717273834035,-280.0,0.00033,2]
[328373567,1717273834045,-750.0,0.00033,2]
[328373568,1717273834055,-20084.0,0.00033,2]
[328373569,1717273834065,-155.0,0.00033003,4]
[328373570,1717273834075,-407.94340211,0.00033004,10]
[328373571,1717273834084,-246.5778218,0.00033017,7]
[328373572,1717273834094,-284.16443433,0.00033019,2]
[328373573,1717273834104,-317.74560908,0.00033033,10]
[328373574,1717273834113,-500.0,0.00033033,10]
[328373575,1717273834123,-160.29752061,0.0003304,7]
[328373576,1717273834133,-246.5778218,0.00033057,7]
[328373577,1717273834144,-407.94340211,0.0003307,10]
[328373578,1717273834154,-284.16443433,0.00033079,2]
[328373579,1717273834164,-246.5778218,0.00033087,7]
[328373580,1717273834174,-677.2238,0.000331,2]
[328373581,1717273834184,-800.0,0.00033123,7]
[328373582,1717273834193,-800.0,0.00033123,7]
[328373583,1717273834202,-800.0,0.00033123,7]
[328373584,1717273834212,-407.94340211,0.00033135,10]
[328373585,1717273834221,-629.0,0.00033147,11]
[328373586,1717273834230,-150.79579508,0.00033151,30]
[328373587,1717273834240,-246.5778218,0.00033156,7]
[328373588,1717273834250,-5800.0,0.0003318,2]
[328373589,1717273834260,-5800.0,0.00033188,2]
[328373590,1717273834270,-246.5778218,0.00033197,7]
[328373591,1717273834279,-520.84081729,0.00033199,2]
[328373592,1717273834289,-1000.0,0.000332,2]
[328373593,1717273834299,-9730.69347191,0.000332,5]
[328373594,1717273834309,-1009.4753973,0.000332,2]
[328373595,1717273834319,-407.94340211,0.000332,10]
[328373596,1717273834329,-246.5778218,0.00033253,7]
[328373597,1717273834338,-1196.59,0.00033267,2]
[328373598,1717273834348,-500.0,0.0003327,2]
[328373599,1717273834359,-500.0,0.0003327,2]
[328373600,1717273834369,-500.0,0.0003327,2]
[328373601,1717273834379,-667.24,0.00033276,11]
[328373602,1717273834388,-1206.1688486,0.00033277,2]
[328373603,1717273834571,-953.8765997,0.00033277,2]
[328373604,1717273834581,-701.5843508,0.00033277,2]
[328373605,1717273834591,-449.2921019,0.00033277,2]
[328373606,1717273834601,-196.9998531,0.00033277,2]
[328373607,1717273834611,-536.3183528,0.00033277,2]
[328373608,1717273834620,-536.3183528,0.00033277,2]
[328373609,1717273834630,-536.3183528,0.00033277,2]
[328373610,1717273834639,-536.3183528,0.00033277,2]
[328373611,1717273834648,-536.3183528,0.00033277,2]
[328373612,1717273834658,-16742.2442543,0.00033277,2]
[328373613,1717273834667,-13240.2980227,0.00033277,2]
[328373614,1717273834681,-9738.351791,0.00033277,2]
[328373615,1717273834691,-6236.4055594,0.00033277,2]
[328373616,1717273834700,-2734.4593278,0.00033277,2]
[328373617,1717273834713,-3438.542841,0.00033277,2]
[328373618,1717273834722,-2720.0864548,0.00033277,2]
[328373619,1717273834732,-2001.6300686,0.00033277,2]
[328373620,1717273834742,-1283.1736824,0.00033277,2]
[328373621,1717273834752,-564.7172962,0.00033277,2]
[328373622,1717273834762,-4080.5249828,0.00033277,2]
[328373623,1717273834773,-3577.6105897,0.00033277,2]
[328373624,1717273834783,-3074.6961967,0.00033277,2]
[328373625,1717273834793,-2571.7818036,0.00033277,2]
[328373626,1717273834803,-2068.8674105,0.00033277,2]
[328373627,1717273834812,-607.0,0.00033288,4]
[328373628,1717273834822,-150.0,0.00033288,7]
[328373629,1717273834831,-150.0,0.00033288,7]
[328373630,1717273834841,-150.0,0.00033288,7]
[328373631,1717273834851,-150.0,0.00033288,7]
[328373632,1717273834860,-150.0,0.00033288,7]
[328373633,1717273834870,-150.0,0.00033288,7]
[328373634,1717273834880,-150.0,0.00033288,7]
[328373635,1717273834889,-150.0,0.00033288,7]
[328373636,1717273834899,-154.36360791,0.00033288,7]
[328373637,1717273834909,-152.13147138,0.00033288,7]
[328373638,1717273834919,-150.0,0.00033288,7]
[328373639,1717273834928,-150.0,0.00033288,7]
[328373640,1717273834938,-296.65283656,0.00033288,7]
[328373641,1717273834948,-150.0,0.00033288,7]
[328373642,1717273834958,-150.0,0.00033288,7]
[328373643,1717273834967,-150.0,0.00033288,7]
[328373644,1717273834977,-203.72089016,0.00033288,2]
[328373645,1717273834987,-1196.59,0.00033289,2]
[328373646,1717273834996,-151.68,0.0003329,2]
[328373647,1717273835006,-151.68,0.0003329,2]
[328373648,1717273835016,-151.68,0.0003329,2]
[328373649,1717273835025,-151.68,0.0003329,2]
[328373650,1717273835035,-151.68,0.0003329,2]
[328373651,1717273835045,-151.68,0.0003329,2]
[328373652,1717273835055,-151.68,0.0003329,2]
[328373653,1717273835065,-151.68,0.0003329,2]